bitfinex/quotes_ETHUSD_20220202
["timestamp","ask_amount","ask_price","bid_price","bid_amount"]
[1643818888008,1.1139,2659.6,2659.0,0.188]
[1643818888206,0.8881,2659.5,2659.1,2.04492646]
[1643818888469,0.00258438,2660.1,2659.1,2.04492646]
[1643818888470,0.00258438,2660.2,2659.3,0.81819812]
[1643818888671,0.00258438,2660.2,2660.0,0.19313325]
[1643818888875,3.71138438,2660.2,2660.0,0.19313325]
[1643818889074,3.20398078,2660.6,2660.0,0.19313325]
[1643818889075,0.62646165,2660.6,2660.0,0.19313325]
[1643818889271,0.62646165,2660.6,2660.1,0.452]
[1643818889668,0.62387727,2660.6,2660.1,0.452]
[1643818889868,0.62387727,2660.6,2660.4,0.21326991]
[1643818890069,0.62387727,2660.6,2660.2,0.93551261]
[1643818890269,0.62387727,2660.6,2660.2,1.38751261]
[1643818890870,0.62387727,2660.6,2660.2,1.38263096]
[1643818891073,0.62387727,2660.6,2660.3,0.20324569]
[1643818891274,0.62387727,2660.6,2660.4,0.452]
[1643818892304,0.62387727,2660.6,2660.4,0.45668819]
[1643818892508,0.18407592,2660.8,2660.5,5.65]
[1643818892707,0.18407592,2660.8,2660.5,6.102]
[1643818892708,0.18149154,2660.8,2660.5,6.102]
[1643818892905,0.18149154,2660.8,2660.6,1.0]
[1643818893106,0.18149154,2660.8,2660.7,4.23099332]
[1643818893305,0.18149154,2660.8,2660.7,5.23099332]
[1643818893506,0.18149154,2660.8,2660.7,5.44164182]
[1643818894308,0.08149154,2660.8,2660.7,5.44164182]
[1643818895206,0.00452715,2660.9,2660.8,4.45]
[1643818895407,2.715e-05,2660.9,2660.8,7.102]
[1643818895613,2.715e-05,2660.9,2660.8,7.5899]
[1643818895911,0.00258438,2661.9,2660.8,9.18171023]
[1643818896085,0.00258438,2661.9,2660.9,1.77951023]
[1643818896282,0.00258438,2661.9,2661.1,0.89835959]
[1643818896483,0.00258438,2662.4,2661.2,0.64854277]
[1643818896685,1.33456678,2662.7,2661.3,5.65]
[1643818896885,1.33456678,2662.7,2661.4,0.1877]
[1643818897084,1.33456678,2662.7,2661.4,0.452]
[1643818897384,1.33456678,2662.7,2660.9,2.2022]
[1643818897385,0.1930203,2662.2,2661.0,0.1877]
[1643818897584,0.1877,2662.1,2660.9,1.2022]
[1643818897785,2.32198558,2662.1,2660.9,1.2022]
[1643818897984,2.62198558,2662.1,2660.9,1.2022]
[1643818898185,0.4877,2662.1,2660.9,1.2022]
[1643818898384,0.22598507,2661.6,2661.3,0.79621386]
[1643818898984,0.22598507,2661.6,2660.9,1.2022]
[1643818899183,0.22598507,2661.6,2660.7,0.19258226]
[1643818899390,0.22110459,2661.6,2660.7,0.1877]
[1643818899607,0.22110459,2661.6,2660.6,0.37120839]
[1643818899810,0.2259851,2661.6,2660.7,0.0048822]
[1643818900007,0.00488051,2661.6,2661.1,0.70703145]
[1643818900206,0.19258051,2661.6,2661.1,0.70703145]
[1643818900414,0.1877,2661.7,2661.1,0.70703145]
[1643818900612,0.00419052,2661.8,2661.1,0.70703145]
[1643818900807,0.00419052,2661.8,2661.1,0.73194783]
[1643818900808,0.0033937,2661.5,2661.1,0.73194783]
[1643818901013,0.0033937,2661.5,2661.1,0.92647791]
[1643818901409,0.0033937,2661.5,2661.1,0.73194783]
[1643818901607,0.16144328,2661.9,2661.2,3.8]
[1643818901807,0.16144328,2661.9,2661.7,0.68987318]
[1643818902011,0.01357275,2661.8,2661.7,0.68987318]
[1643818902208,0.01357275,2661.8,2661.2,0.02491638]
[1643818902409,0.01357275,2661.8,2661.1,0.47691638]
[1643818902610,0.01357275,2661.8,2661.1,0.02491638]
[1643818903010,0.19200025,2662.4,2661.5,0.01259991]
[1643818903363,0.19200025,2662.4,2661.5,0.03470151]
[1643818903364,0.00491007,2662.0,2661.5,0.03470151]
[1643818903562,0.32933416,2662.4,2661.6,3.35]
[1643818903762,0.32933416,2662.4,2661.5,0.03470151]
[1643818903965,0.07358,2662.3,2661.5,0.0221016]
[1643818904167,0.00392081,2661.4,2661.3,0.01222564]
[1643818904364,0.00392081,2661.4,2661.1,2.71015339]
[1643818904862,0.00392081,2661.4,2661.1,1.71015339]
[1643818905065,0.00392081,2661.4,2661.3,4.43859518]
[1643818905265,0.00392081,2661.4,2661.0,438.1877]
[1643818905865,0.07363,2661.3,2661.0,438.1877]
[1643818906264,0.07363,2661.3,2661.2,0.16322352]
[1643818906665,0.07363,2661.3,2661.0,438.8637198]
[1643818906869,0.07363,2661.3,2661.0,438.19261766]
[1643818907810,0.07363,2661.3,2661.0,438.1877]
[1643818908110,0.07363,2661.3,2661.1,0.68433969]
[1643818908512,6.783,2661.1,2661.0,392.8299315]
[1643818908714,10.96997466,2661.1,2661.0,357.2125434]
[1643818908917,38.98673156,2661.1,2661.0,304.88863638]
[1643818909109,38.98673156,2661.1,2661.0,269.26823148]
[1643818909110,33.43497497,2661.1,2661.0,269.26823148]
[1643818909308,33.43497497,2661.1,2661.0,223.35117038]
[1643818909309,38.300788,2661.1,2661.0,223.35117038]
[1643818909709,27.41825138,2661.1,2661.0,223.35117038]
[1643818909914,27.22997138,2661.1,2661.0,223.35117038]
[1643818910113,26.46550594,2661.1,2661.0,223.35117038]
[1643818910312,25.89191594,2661.1,2661.0,223.35117038]
[1643818910509,24.643,2661.1,2661.0,223.35117038]
[1643818910709,23.593,2661.1,2661.0,224.32257547]
[1643818910967,5.13294793,2662.2,2661.2,5.8]
[1643818911161,1.41614793,2662.4,2661.3,2.13493372]
[1643818911363,24.96,2662.2,2661.4,0.1877]
[1643818911560,0.27881643,2662.1,2661.4,0.1877]
[1643818911765,0.27881643,2662.1,2661.3,0.1877]
[1643818911766,0.0049229,2662.1,2661.3,0.1877]
[1643818911965,25.14828,2662.0,2661.3,0.1877]
[1643818912160,0.27881643,2661.9,2661.1,10.3069]
[1643818912465,0.27881643,2661.9,2661.3,1.0]
[1643818912859,0.49815384,2661.9,2661.4,0.00492489]
[1643818913061,1.49815384,2661.9,2661.4,0.00492489]
[1643818913263,2.43808384,2661.9,2661.4,0.00492489]
[1643818913460,4.09848643,2661.9,2661.4,0.00492489]
[1643818913864,5.33833643,2661.9,2661.3,1.0]
[1643818914061,4.39840643,2661.9,2661.5,0.0049248]
[1643818914261,4.4113561,2661.9,2661.5,0.0049248]
[1643818914460,4.57270149,2661.9,2661.5,0.0049248]
[1643818914904,0.93986,2661.8,2661.5,0.0049248]
[1643818915110,0.93986,2661.8,2661.3,1.0]
[1643818915304,0.3,2661.7,2661.3,1.0]
[1643818915504,0.00258848,2661.8,2661.3,1.0]
[1643818916109,1.00258848,2661.8,2661.3,1.0]
[1643818916308,0.01269767,2661.7,2661.3,1.0]
[1643818916507,0.95265767,2661.7,2661.3,1.0]
[1643818916912,0.01269767,2661.7,2661.3,1.0]
[1643818917911,1.01269767,2661.7,2661.3,1.0]
[1643818918376,1.55008643,2661.9,2661.3,1.0]
[1643818918377,0.27881643,2661.9,2661.4,5.8]
[1643818918575,0.00259111,2661.8,2661.4,5.9877]
[1643818918772,9.111e-05,2661.8,2661.4,5.9877]
[1643818918972,0.27881643,2661.9,2661.6,0.77474421]
[1643818919172,0.00217391,2661.7,2661.6,0.77474421]
[1643818919374,7.391e-05,2661.7,2661.4,5.99241196]
[1643818919876,7.391e-05,2661.7,2661.4,5.9877]
[1643818920092,3.2141359,2663.3,2661.6,5.81240199]
[1643818920283,1.89283344,2663.2,2662.9,0.01293411]
[1643818920480,0.86096681,2663.3,2661.6,5.8]
[1643818920481,2.75380025,2663.3,2661.6,6.27242654]
[1643818920679,2.75380025,2663.3,2661.6,5.83072093]
[1643818920680,2.94208025,2663.3,2661.6,5.83072093]
[1643818921076,0.18828,2663.3,2662.8,0.75931342]
[1643818921476,0.18828,2663.3,2661.7,2.24171951]
[1643818921679,0.18828,2663.3,2661.6,5.82384671]
[1643818921877,1.89283344,2663.1,2661.6,5.82384671]
[1643818922119,2.83227344,2663.0,2661.6,5.81242024]
[1643818922319,0.93944,2663.0,2661.6,8.04223484]
[1643818922516,10.52638,2663.7,2663.2,0.73051247]
[1643818922517,0.1416,2663.4,2663.2,0.73051247]
[1643818922715,1.89283344,2663.5,2661.8,2.2298146]
[1643818922919,1.89283344,2663.3,2661.8,0.00973345]
[1643818923116,1.89283344,2663.3,2661.6,8.94078338]
[1643818923314,1.89283344,2663.3,2661.7,1.1877]
[1643818923516,1.89283344,2663.4,2661.7,1.1877]
[1643818923715,0.22030262,2663.3,2662.8,0.74693238]
[1643818923915,1.89283344,2663.4,2662.8,0.57440605]
[1643818924116,1.89283344,2663.4,2662.9,0.00763726]
[1643818924117,0.00402588,2663.2,2662.9,0.00763726]
[1643818924319,0.1552,2663.7,2663.0,0.01257387]
[1643818924517,2.36316909,2663.9,2663.0,0.01257387]
[1643818924518,0.01,2663.9,2663.0,0.01257387]
[1643818924715,1.8915686,2663.9,2663.0,0.01257387]
[1643818924915,0.01969717,2663.6,2663.4,0.21963506]
[1643818925117,0.01969717,2663.6,2663.0,0.01257387]
[1643818925118,0.01969717,2663.6,2663.0,0.02596947]
[1643818925521,9.717e-05,2663.6,2663.5,6.59394137]
[1643818925960,0.01893283,2664.4,2663.5,6.60296297]
[1643818926356,0.01893283,2664.4,2663.7,0.01236099]
[1643818926357,1.41638515,2664.4,2663.7,0.01236099]
[1643818926556,1.41638515,2664.5,2663.7,0.01236099]
[1643818926757,1.41638515,2664.3,2663.6,10.0588]
[1643818926959,4.04736493,2664.6,2663.6,10.0588]
[1643818927162,1.0,2664.0,2663.6,10.0588]
[1643818927359,1.0,2663.8,2662.9,0.20024551]
[1643818927559,0.1576,2664.2,2663.5,1.07968987]
[1643818927758,0.1576,2664.2,2662.9,0.1875]
[1643818927759,1.0,2664.2,2662.9,0.1875]
[1643818927958,0.18828,2664.1,2662.9,0.19980354]
[1643818928164,0.18828,2664.1,2662.9,0.01230354]
[1643818928359,1.12738,2664.1,2662.9,0.01230354]
[1643818928558,1.12738,2664.1,2663.4,0.00160627]
[1643818928760,0.3,2664.0,2663.4,0.00160627]
[1643818929358,0.3,2664.0,2662.9,0.01230354]
[1643818929807,1.1595832,2663.7,2663.5,0.00492535]
[1643818930006,1.77237421,2663.7,2663.5,0.00492535]
[1643818930205,2.1405469,2663.6,2663.5,0.00492535]
[1643818930408,1.07237421,2663.7,2663.5,0.00492535]
[1643818930607,0.3,2663.7,2662.8,1.04125155]
[1643818930812,2.22285852,2664.1,2662.8,1.04125155]
[1643818931011,6.3679,2664.2,2662.8,1.04125155]
[1643818931012,0.00492467,2663.7,2663.6,4.95]
[1643818931208,0.00492467,2663.7,2663.4,0.00492525]
[1643818931606,2.22285852,2664.1,2663.4,0.00492525]
[1643818931808,2.43502852,2664.0,2662.8,1.04125155]
[1643818932007,6.69462597,2664.7,2662.8,1.04125155]
[1643818932008,1.29726489,2665.1,2665.0,178.54332154]
[1643818932206,1.29726489,2665.1,2665.0,168.8691178]
[1643818932207,1.3098778,2665.1,2665.0,168.8691178]
[1643818932409,1.36542172,2665.1,2665.0,157.5989378]
[1643818932609,1.36542172,2665.1,2665.0,152.89188889]
[1643818932610,1.80108291,2665.1,2665.0,152.89188889]
[1643818932809,1.80108291,2665.1,2665.0,151.9640478]
[1643818932810,0.78441,2665.1,2665.0,151.9640478]
[1643818933013,0.18761,2665.1,2665.0,151.9640478]
[1643818933209,0.33161,2665.1,2665.0,151.9640478]
[1643818933494,0.34201,2665.1,2665.0,151.9640478]
[1643818933778,0.1968,2665.1,2665.0,151.9640478]
[1643818933978,0.1984,2665.1,2665.0,151.9640478]
[1643818934177,0.6496,2665.1,2665.0,146.3296278]
[1643818934378,0.656,2665.1,2665.0,146.3296278]
[1643818934680,0.664,2665.1,2665.0,140.6952578]
[1643818934979,4.02985934,2665.1,2665.0,140.6952578]
[1643818935279,4.03785934,2665.1,2665.0,135.0610278]
[1643818935479,14.59585934,2665.1,2665.0,64.51225282]
[1643818935680,14.59585934,2665.1,2663.5,0.00445883]
[1643818935681,1.75,2665.0,2663.5,0.00445883]
[1643818935881,0.93948,2663.7,2663.5,0.00445883]
[1643818936084,1.59743189,2663.6,2663.5,0.00445883]
[1643818936279,1.77183189,2663.6,2663.5,0.00445883]
[1643818936478,1.77023189,2663.6,2663.5,0.00445883]
[1643818936784,1.77023189,2663.6,2663.2,0.1875]
[1643818936785,1.77023189,2663.6,2662.0,10.4621]
[1643818936786,1.133,2663.4,2662.0,10.4621]
[1643818936984,1.133,2663.4,2661.3,2.3445]
[1643818936985,0.01210608,2662.9,2661.3,0.25]
[1643818937216,0.01210608,2662.9,2661.4,8.5832]
[1643818937217,0.45568894,2662.8,2661.4,8.5832]
[1643818937414,2.07282,2662.7,2661.4,8.5832]
[1643818937714,1.133,2663.0,2662.5,4.883]
[1643818937915,2.17911,2663.7,2662.9,0.01293616]
[1643818938114,0.1496,2663.2,2662.9,0.01293616]
[1643818938314,0.1824,2663.6,2662.4,0.1874]
[1643818938515,0.452,2663.2,2661.9,0.01264003]
[1643818938717,0.452,2663.2,2662.0,0.1877]
[1643818938916,0.1664,2663.1,2662.1,0.25]
[1643818939112,0.1664,2663.1,2663.0,2.656648]
[1643818939113,0.156,2663.1,2663.0,2.656648]
[1643818939314,0.1464,2663.3,2662.2,0.1877]
[1643818939515,0.6296,2663.6,2662.2,1.18769999]
[1643818939713,0.1832,2663.5,2662.3,0.99999999]
[1643818939912,0.1488,2663.5,2662.4,0.1877]
[1643818940113,0.1488,2663.5,2662.2,0.1877]
[1643818940114,0.93955,2663.4,2662.2,0.1877]
[1643818940315,0.91014945,2663.1,2662.2,0.1877]
[1643818940515,2.56777748,2663.3,2661.8,0.1877]
[1643818940516,0.93981,2662.7,2661.8,0.1877]
[1643818940956,0.1768,2662.6,2661.8,0.1877]
[1643818941362,0.39253373,2662.5,2661.8,0.1877]
[1643818941562,0.39253373,2662.5,2662.1,0.69557208]
[1643818941758,0.39253373,2662.5,2662.1,0.70049412]
[1643818941955,0.39253373,2662.5,2662.1,0.00492204]
[1643818942156,0.1432,2662.4,2662.1,0.00492204]
[1643818942357,0.39253373,2662.5,2662.1,0.00492204]
[1643818942554,0.53893373,2662.5,2662.1,0.8663881]
[1643818942756,2.70837861,2662.4,2662.1,0.86146606]
[1643818942956,2.71957861,2662.4,2662.1,0.86638807]
[1643818943155,0.1496,2662.3,2662.1,0.86638807]
[1643818943354,1.08873,2662.3,2662.1,0.86638807]
[1643818943557,2.55205166,2662.2,2662.1,0.86638807]
[1643818943756,2.71377156,2662.2,2662.1,0.86638807]
[1643818943959,2.72257156,2662.2,2662.1,0.86146606]
[1643818944155,0.148,2662.2,2662.1,0.86146606]
[1643818944357,0.148,2662.3,2662.1,0.8663881]
[1643818944611,0.1416,2662.3,2662.1,0.8663881]
[1643818944810,0.5952,2662.4,2662.1,0.8663881]
[1643818945011,0.5952,2662.4,2662.1,0.86146606]
[1643818945211,0.53333373,2662.5,2662.1,0.86146606]
[1643818945413,0.53973373,2662.5,2662.1,0.8663881]
[1643818945612,0.39253373,2662.5,2662.1,0.8663881]
[1643818946312,0.53813373,2662.5,2662.1,0.86146606]
[1643818946520,2.72238481,2662.4,2662.1,0.86146606]
[1643818946713,2.72238481,2662.4,2662.2,0.00492198]
[1643818946714,2.87038481,2662.4,2662.2,0.00492198]
[1643818946912,0.1464,2662.3,2662.2,0.00492198]
[1643818947112,0.1416,2662.3,2662.2,0.86638804]
[1643818947312,0.1408,2662.3,2662.2,0.86638804]
[1643818947513,0.69253373,2662.5,2662.2,0.86146606]
[1643818947514,0.93987,2662.4,2662.2,0.86146606]
[1643818947714,0.83573373,2662.5,2662.2,0.86146606]
[1643818947915,0.69253373,2662.5,2662.2,0.86146606]
[1643818948354,0.83973373,2662.5,2662.2,0.86146606]
[1643818948556,0.1416,2662.4,2662.2,0.86146606]
[1643818948957,0.69253373,2662.5,2662.2,0.86580217]
[1643818948958,0.53813373,2662.5,2662.2,0.86580217]
[1643818949161,0.1416,2662.4,2662.2,0.86580217]
[1643818949356,0.1456,2662.4,2662.2,0.86580217]
[1643818949556,0.39253373,2662.5,2662.2,0.86580217]
[1643818949957,0.1408,2662.4,2662.2,0.86146606]
[1643818950158,0.1408,2662.4,2662.2,0.86580217]
[1643818950159,0.148,2662.4,2662.2,0.86580217]
[1643818950360,0.1512,2662.3,2662.2,0.86580217]
[1643818950560,0.1544,2662.3,2662.2,0.86580217]
[1643818950770,1.45685526,2662.6,2662.2,1.86580216]
[1643818950962,0.1408,2662.5,2662.2,0.86580217]
[1643818951162,1.46165526,2662.6,2662.2,0.86146606]
[1643818951365,1.31445526,2662.6,2662.2,0.86146606]
[1643818951766,1.31445526,2662.6,2662.4,0.99999999]
[1643818952109,1.08607,2663.0,2662.4,0.99999999]
[1643818952310,1.09327,2663.0,2662.5,7.9596]
[1643818952514,0.156,2662.9,2662.5,7.9596]
[1643818952708,0.1568,2662.9,2662.5,8.82106606]
[1643818952908,0.1424,2662.8,2662.5,8.82106606]
[1643818953108,0.1496,2662.9,2662.5,8.82106606]
[1643818953310,0.0972,2662.9,2662.5,8.82106606]
[1643818953509,0.0972,2662.9,2662.5,0.86146606]
[1643818953510,1.88575747,2662.8,2662.5,0.86146606]
[1643818953709,2.33175,2662.7,2662.5,0.86146606]
[1643818953913,3.15,2662.6,2661.2,0.1877]
[1643818954115,0.93995,2662.3,2661.0,2.01794752]
[1643818954427,0.18248582,2661.9,2661.0,2.01794752]
[1643818954610,1.88043,2661.6,2661.0,2.01794752]
[1643818954810,1.88043,2661.6,2661.0,2.0]
[1643818954811,0.452,2661.5,2661.0,2.0]
[1643818955011,0.6248,2661.5,2661.0,2.0]
[1643818955210,1.09939,2661.4,2661.3,0.00448504]
[1643818955409,1.09939,2661.4,2661.3,0.00368504]
[1643818955410,1.54179,2661.4,2661.3,0.00368504]
[1643818955611,1.54339,2661.4,2661.0,2.0]
[1643818955870,1.54259,2661.4,2661.0,2.0]
[1643818956067,0.1456,2661.3,2661.0,2.0]
[1643818956268,1.39219,2661.4,2661.2,2.95]
[1643818956269,1.08499,2661.4,2661.2,2.95]
[1643818956466,1.08499,2661.4,2661.0,2.0]
[1643818956467,2.58676174,2661.3,2661.0,2.0]
[1643818956668,0.1592,2661.3,2660.4,0.1877]
[1643818956866,0.1624,2661.3,2660.4,0.1877]
[1643818957070,0.1616,2661.3,2660.4,0.1877]
[1643818957265,0.1616,2661.3,2660.4,1.02626186]
[1643818957266,0.452,2661.2,2660.4,1.02626186]
[1643818957466,0.94035,2661.0,2660.4,0.83856186]
[1643818957665,1.39235,2661.0,2660.4,0.83856186]
[1643818957864,0.1432,2660.9,2660.4,0.83856186]
[1643818958065,0.1424,2660.9,2660.4,0.83856186]
[1643818958265,0.1424,2660.9,2660.3,10.9176]
[1643818958266,0.1432,2660.9,2660.3,10.9176]
[1643818958466,0.1608,2660.9,2660.3,10.7297]
[1643818958667,0.1608,2660.9,2660.1,8.4308]
[1643818958668,0.452,2660.8,2660.1,8.4308]
[1643818958866,0.94048,2660.6,2660.1,8.4308]
[1643818959265,0.1464,2660.5,2660.4,0.69368218]
[1643818959469,0.5928,2660.5,2660.4,0.69368218]
[1643818959720,0.9404999,2661.2,2660.4,0.69368218]
[1643818959721,0.452,2661.0,2660.4,0.69368218]
[1643818960118,0.144,2660.9,2660.4,0.69368218]
[1643818960317,0.1456,2660.9,2660.8,4.83431758]
[1643818960518,0.452,2661.4,2660.8,6.54559978]
[1643818960519,0.176,2661.4,2660.8,6.54559978]
[1643818960716,0.94023,2661.5,2660.8,5.36128221]
[1643818960717,0.144,2661.3,2660.8,5.36128221]
[1643818960918,0.94023,2661.5,2660.2,1.3716]
[1643818960919,0.1616,2661.4,2660.2,1.3716]
[1643818961117,0.6216,2661.4,2660.7,0.00419914]
[1643818961316,0.1872,2661.3,2660.7,0.00419914]
[1643818961530,0.452,2661.2,2660.7,0.00419914]
[1643818961716,0.16306237,2661.1,2660.7,0.00419914]
[1643818961920,0.452,2661.0,2660.7,0.00419914]
[1643818962118,0.6256,2661.0,2660.2,1.00034258]
[1643818962322,0.1504,2660.9,2660.8,0.00419909]
[1643818962520,0.6016,2660.9,2660.8,0.00419909]
[1643818962719,0.6104,2660.9,2660.8,0.00419909]
[1643818962919,0.6096,2660.9,2660.8,0.00419909]
[1643818963119,1.55721,2660.9,2660.8,0.00419909]
[1643818963361,1.55881,2660.9,2660.8,0.00419909]
[1643818963562,1.56201,2660.9,2660.7,0.00419914]
[1643818963763,1.56121,2660.9,2660.7,0.00419914]
[1643818963963,0.1656,2660.8,2660.7,0.00419914]
[1643818964163,0.6192,2660.8,2660.7,0.00419914]
[1643818964365,0.6192,2660.8,2660.1,8.4308]
[1643818964366,3.23773602,2660.8,2660.1,8.4308]
[1643818964566,0.00672473,2660.6,2660.1,8.4308]
[1643818964763,0.17042379,2660.4,2660.2,0.01660867]
[1643818964967,0.452,2660.3,2660.2,0.01660867]
[1643818965163,0.648,2660.3,2660.1,8.4308]
[1643818965364,0.6464,2660.3,2660.1,8.4308]
[1643818965563,0.188,2660.2,2660.1,8.4308]
[1643818965764,0.6344,2660.2,2660.1,8.4308]
[1643818965964,0.6336,2660.2,2660.1,8.4308]
[1643818966166,0.6376,2660.2,2660.1,8.4308]
[1643818966366,2.82272,2660.0,2659.4,0.005]
[1643818966568,1.88185,2659.7,2659.0,0.1879]
[1643818966767,0.452,2659.6,2659.0,0.005]
[1643818967105,0.616,2659.6,2659.0,0.005]
[1643818967305,0.1544,2659.5,2659.2,0.82742713]
[1643818967508,0.452,2659.4,2659.2,0.82742713]
[1643818967704,0.6048,2659.4,2659.2,0.82742713]
[1643818967907,0.1416,2659.3,2659.2,0.82742713]
[1643818968107,0.1448,2659.3,2659.2,0.82742713]
[1643818968306,0.1448,2659.3,2659.0,0.005]
[1643818968508,0.1464,2659.3,2659.0,0.005]
[1643818968707,0.1448,2659.3,2659.0,0.005]
[1643818968908,0.1464,2659.3,2659.0,0.005]
[1643818969109,0.452,2659.2,2659.0,0.005]
[1643818969408,0.6328,2659.2,2659.0,0.005]
[1643818969608,0.1752,2659.1,2659.0,0.00992387]
[1643818969809,0.1712,2659.1,2659.0,0.00492387]
[1643818970012,0.6264,2659.1,2659.0,0.00492387]
[1643818970210,0.452,2659.1,2659.0,0.00492387]
[1643818970408,0.6248,2659.1,2658.9,7.9572]
[1643818970609,0.6248,2659.1,2658.9,7.96212393]
[1643818970864,0.1632,2659.0,2658.9,7.96712393]
[1643818971060,0.1616,2659.0,2658.9,7.96212393]
[1643818971268,0.1656,2659.0,2658.9,7.96212393]
[1643818971461,0.1632,2659.0,2658.9,7.96212393]
[1643818971661,0.16,2659.0,2658.9,7.9572]
[1643818971863,1.09463,2659.0,2658.9,7.9572]
[1643818972061,1.09703,2659.0,2658.9,7.9572]
[1643818972260,1.10263,2659.0,2658.9,7.9572]
[1643818972461,1.10503,2659.0,2658.9,7.9572]
[1643818972665,0.144,2659.0,2658.9,8.95719999]
[1643818972865,1.45685526,2659.2,2658.9,8.95719999]
[1643818973061,1.45685526,2659.2,2659.0,0.005]
[1643818973260,0.1416,2659.1,2659.0,0.005]
[1643818973464,1.88207,2659.3,2659.0,0.005]
[1643818973465,2.82278,2660.1,2659.3,5.45]
[1643818973664,2.82278,2660.1,2659.7,0.99999999]
[1643818973665,0.144,2660.1,2659.7,0.99999999]
[1643818973862,0.39289023,2660.2,2659.7,0.99999999]
[1643818974065,0.148,2660.5,2659.7,0.99999999]
[1643818974260,0.94052,2660.7,2659.7,1.00804198]
[1643818974261,0.39287408,2660.4,2659.7,1.00804198]
[1643818974462,0.0048322,2660.3,2659.8,0.1879]
[1643818974713,0.1624322,2660.3,2659.9,0.91710794]
[1643818974912,0.1640322,2660.3,2660.0,8.5835]
[1643818975111,0.1672322,2660.3,2660.0,8.5835]
[1643818975316,1.10698,2660.3,2660.0,8.5835]
[1643818975512,1.11430263,2660.3,2660.0,8.5884233]
[1643818975712,1.10950263,2660.3,2660.0,8.5884233]
[1643818975914,0.1632,2660.2,2660.0,8.5884233]
[1643818976213,0.1656,2660.2,2660.0,8.5884233]
[1643818976412,0.1656,2660.2,2660.0,8.5835]
[1643818976413,0.1592,2660.2,2660.0,8.5835]
[1643818976612,0.1536,2660.1,2660.0,8.5884233]
[1643818976815,0.1592,2660.2,2660.0,8.5884233]
[1643818977016,0.1536,2660.1,2660.0,8.5884233]
[1643818977314,0.1512,2660.1,2660.0,8.5884233]
[1643818977512,0.94550263,2660.3,2660.0,8.5884233]
[1643818977513,0.1632,2660.2,2660.0,8.5884233]
[1643818977713,2.04704,2660.2,2660.0,8.5835]
[1643818977923,2.04944,2660.2,2660.0,8.5835]
[1643818978114,0.1616,2660.1,2660.0,8.5835]
[1643818978362,0.1544,2660.1,2660.0,8.5835]
[1643818978760,0.1496,2660.1,2660.0,8.5835]
[1643818978960,2.02866,2660.1,2660.0,8.5835]
[1643818979164,2.02866,2660.1,2659.9,0.00492333]
[1643818979165,0.94073,2660.0,2659.9,0.00492333]
[1643818979363,2.39273,2660.0,2659.9,0.00492333]
[1643818979661,2.88393,2660.0,2659.9,0.00492333]
[1643818979863,3.79905,2660.0,2659.9,0.00492333]
[1643818980063,3.78225,2660.0,2659.5,0.005]
[1643818980263,3.78225,2660.0,2659.8,0.00492339]
[1643818980264,0.3,2659.9,2659.8,0.00492339]
[1643818980470,0.9152,2659.9,2659.8,0.00492339]
[1643818980661,0.916,2659.9,2659.8,0.00492339]
[1643818980863,0.916,2659.9,2659.0,0.1879]
[1643818980864,3.85,2659.8,2659.0,0.1879]
[1643818981062,3.85,2659.8,2658.0,11.34175944]
[1643818981063,0.17950741,2659.2,2658.1,20.4993924]
[1643818981261,0.452,2659.1,2658.1,17.69195945]
[1643818981463,1.88218,2659.0,2658.2,6.7019]
[1643818981672,1.88218,2659.0,2658.3,0.188]
[1643818981861,0.5976,2658.9,2658.3,0.188]
[1643818982112,0.6056,2658.9,2658.3,1.18799999]
[1643818982314,1.08349,2658.8,2658.5,0.74730937]
[1643818982515,0.5936,2658.9,2658.7,5.39999999]
[1643818982714,1.3,2658.8,2658.7,5.39999999]
[1643818982913,0.3,2658.8,2658.7,5.39999999]
[1643818983118,1.5952,2658.9,2658.7,5.39999999]
[1643818983119,0.444,2658.9,2658.7,5.39999999]
[1643818983315,1.61534444,2659.1,2658.9,0.70683705]
[1643818983516,0.3,2659.1,2659.0,0.99999999]
[1643818983714,0.1424,2659.3,2659.0,0.99999999]
[1643818983917,0.8992,2659.4,2658.7,4.4]
[1643818984115,0.1568,2659.2,2658.7,4.4]
[1643818984315,3.04281,2659.3,2658.7,4.4]
[1643818984516,0.1512,2659.2,2658.8,0.99999999]
[1643818984716,0.1496,2659.2,2658.8,0.99999999]
[1643818984914,0.152,2659.2,2658.8,0.99999999]
[1643818985116,1.39286,2659.4,2659.1,6.64999999]
[1643818985320,0.94582272,2659.5,2659.3,6.84999999]
[1643818985321,0.00492272,2659.5,2659.3,6.84999999]
[1643818985519,2.24,2659.8,2659.4,5.86227326]
[1643818985730,0.73574444,2659.9,2659.7,0.99999999]
[1643818985968,0.39287408,2660.4,2659.7,0.99999999]
[1643818986167,3.50585339,2661.1,2659.4,12.24937326]
[1643818986168,3.5,2661.0,2660.4,0.72142423]
[1643818986368,3.95785339,2661.1,2660.4,0.72142423]
[1643818986369,0.39281734,2660.8,2660.4,0.72142423]
[1643818986568,2.22358734,2660.8,2660.6,0.99999999]
[1643818986768,2.22358734,2660.8,2660.4,0.72142423]
[1643818986769,0.39281734,2660.8,2660.4,0.72142423]
[1643818986970,0.39281734,2660.8,2660.7,3.74999999]
[1643818987267,3.39770385,2661.5,2660.7,0.99999999]
[1643818987468,1.33297597,2661.3,2660.8,6.5099]
[1643818987670,0.17062348,2661.0,2660.8,6.5099]
[1643818988270,0.452,2661.0,2660.8,6.5099]
[1643818988670,1.881,2660.9,2660.3,10.947]
[1643818988871,0.452,2660.8,2660.3,10.947]
[1643818989170,0.752,2660.8,2660.3,10.947]
[1643818989368,1.752,2660.8,2660.3,10.947]
[1643818989608,2.48774444,2660.8,2660.3,10.947]
[1643818989814,2.48774444,2660.8,2659.7,0.1879]
[1643818989815,3.76267,2660.7,2659.7,0.1879]
[1643818990013,3.76267,2660.7,2659.3,0.00492507]
[1643818990014,0.94078,2660.4,2659.3,0.00492507]
[1643818990213,0.452,2660.3,2659.3,0.00492507]
[1643818990415,0.1811607,2660.0,2659.3,0.00492507]
[1643818990610,0.452,2659.9,2659.3,0.00492507]
[1643818990813,2.33384,2659.9,2659.3,0.76330487]
[1643818991010,2.33384,2659.9,2659.4,6.5901]
[1643818991011,2.63384,2659.9,2659.4,6.5901]